[Event "Karel Janecek Open 2024"]
[Site "Prague"]
[Date "2024.03.05"]
[Round "7.1"]
[White "Kourkoulos-Arditis, Stamatis"]
[Black "Xiang, Zeyu"]
[Result "1-0"]
[ECO "C65"]
[WhiteElo "2547"]
[BlackElo "2418"]
[Annotator "RC"]
[PlyCount "109"]
[EventDate "2024.02.22"]
[EventType "swiss"]
[EventCountry "CZE"]
[SourceTitle "playchess.com"]
[Source "ChessBase"]
[SourceQuality "1"]
[TimeControl "40/5400+30:1800+30"]

1. e4 {[%emt 0:02:19]} e5 {[%emt 0:00:06]} 2. Nf3 {[%emt 0:00:21]} Nc6 {[%emt 0:00:07]} 3. Bb5 {[%emt 0:00:07]} Nf6 {[%emt 0:00:06]} 4. d3 {[%emt 0:00:07]} Bc5 {[%emt 0:00:05]} 5. Bxc6 {[%emt 0:00:07]} dxc6 {[%emt 0:00:06]} 6. Nbd2 {[%emt 0:00:07]} O-O {[%emt 0:00:08]} 7. Qe2 {[%emt 0:00:39]} Re8 {[%emt 0:01:08]} 8. Nc4 {[%emt 0:00:46]} Nd7 {[%emt 0:00:05]} 9. Rg1 {[%emt 0:00:51]} a5 {[%emt 0:00:42]} 10. g4 {[%emt 0:00:34]} b5 {[%emt 0:01:37]} 11. Ne3 {[%emt 0:00:05]} Bb4+ {[%emt 0:10:28]} 12. Bd2 {[%emt 0:01:18]} Bxd2+ {[%emt 0:16:05]} 13. Qxd2 {[%emt 0:02:25]} c5 {[%emt 0:00:13]} 14. O-O-O {[%emt 0:23:33]} b4 {[%emt 0:11:11]} 15. Nf5 {[%emt 0:03:28]} a4 {[%emt 0:02:11]} 16. h4 {[%emt 0:02:38]} Nb6 {[%emt 0:20:09]} 17. c4 {[%emt 0:09:42]} bxc3 {[%emt 0:12:44]} 18. Qxc3 {[%emt 0:01:13]} Nd7 {[%emt 0:03:21]} 19. h5 {[%emt 0:02:28]} Ra6 {[%emt 0:01:56]} 20. Kb1 {[%emt 0:04:35]} Qf6 {[%emt 0:01:48]} 21. g5 {[%emt 0:04:55]} Qc6 {[%emt 0:02:01]} 22. Rc1 {[%emt 0:06:40]} Qb5 {[%emt 0:00:32]} 23. Ne3 {[%emt 0:02:04]} Bb7 {[%emt 0:02:47]} 24. Ng4 {[%emt 0:04:16]} Rae6 {[%emt 0:01:57]} 25. h6 {[%emt 0:01:28]} c4 {[%emt 0:02:53]} 26. Qxc4 {[%emt 0:02:23]} Qxc4 {[%emt 0:00:40]} 27. Rxc4 {[%emt 0:00:08]} Ba6 {[%emt 0:00:41]} 28. Rc3 {[%emt 0:02:51]} c5 {[%emt 0:04:33]} 29. hxg7 {[%emt 0:00:46]} Rb8 {[%emt 0:01:06]} 30. Kc2 {[%emt 0:03:04]} Kxg7 {[%emt 0:00:34]} 31. b3 {[%emt 0:02:02]} Bb5 {[%emt 0:00:30]} 32. Ne3 {[%emt 0:04:34]} axb3+ {[%emt 0:01:06]} 33. axb3 {[%emt 0:00:05]} Ra6 {[%emt 0:00:27]} 34. Nf5+ {[%emt 0:00:09]} Kg8 {[%emt 0:00:34]} 35. Kd2 {[%emt 0:00:25]} Ra2+ {[%emt 0:00:49]} 36. Ke3 {[%emt 0:00:21]} Ra3 {[%emt 0:01:09]} 37. Rgc1 {[%emt 0:03:20]} Ba6 {[%emt 0:01:32]} 38. Rxc5 {[%emt 0:01:04]} Nxc5 {[%emt 0:00:16]} 39. Rxc5 {[%emt 0:00:05]} Raxb3 {[%emt 0:00:09]} 40. Nxe5 {[%emt 0:00:41]} R3b5 {[%emt 0:00:44]} 41. Rxb5 {[%emt 0:32:08]} Rxb5 {[%emt 0:30:22]} 42. Nh6+ {[%emt 0:00:13]} Kg7 {[%emt 0:00:00]} 43. Nhxf7 {[%emt 0:00:00]} Rb3 {[%emt 0:00:00]} 44. Nh6 {[%emt 0:00:00]} Bc8 {[%emt 0:00:00]} 45. f4 {[%emt 0:00:00]} Rb1 {[%emt 0:00:00]} 46. f5 {[%emt 0:00:00]} Rg1 {[%emt 0:00:00]} 47. Nhf7 {[%emt 0:00:00]} Bd7 {[%emt 0:00:00]} 48. Kf2 {[%emt 0:00:00]} Ra1 {[%emt 0:00:00]} 49. Nd6 {[%emt 0:00:00]} Ra7 {[%emt 0:00:00]} 50. f6+ {[%emt 0:00:00]} Kg8 {[%emt 0:00:00]} 51. Nxd7 {[%emt 0:00:00]} Rxd7 {[%emt 0:00:00]} 52. e5 {[%emt 0:00:00]} Rd8 {[%emt 0:00:00]} 53. Ke3 {[%emt 0:00:00]} Rd7 {[%emt 0:00:00]} 54. Ke4 {[%emt 0:00:00]} Rd8 {[%emt 0:00:00]} 55. d4 {[%emt 0:00:00]} 1-0

[Event "Karel Janecek Open 2024"]
[Site "Prague"]
[Date "2024.03.05"]
[Round "7.2"]
[White "Amar, Elham"]
[Black "Ilamparthi A R"]
[Result "1-0"]
[ECO "C77"]
[WhiteElo "2555"]
[BlackElo "2426"]
[Annotator "TA"]
[PlyCount "139"]
[EventDate "2024.02.22"]
[EventType "swiss"]
[EventCountry "CZE"]
[SourceTitle "playchess.com"]
[Source "ChessBase"]
[SourceQuality "1"]
[TimeControl "40/5400+30:1800+30"]

{[%evp 18,139,25,20,45,45,53,25,72,79,77,60,69,68,65,74,89,42,39,36,48,45,41,40,22,6,0,-46,-54,-55,-58,-58,0,-63,6,10,12,0,0,0,0,0,0,0,0,0,80,77,1060,44,69,0,0,0,0,0,8,8,8,0,0,0,0,0,0,0,7,0,33,33,36,33,34,12,12,12,87,87,87,87,87,87,731,715,475,94,94,0,477,477,555,8,470,466,470,470,29936,12851,6176,9743,6344,6115,29966,29966,29966,29967,29967,29963,29970,29973,29975,29976,29977,29978,29979,29980,29980,29981,29981,29982,29984,29985,29985,29986]} 1. e4 {[%emt 0:00:06]} e5 {[%emt 0:00:06]} 2. Nf3 {[%emt 0:00:05]} Nc6 {[%emt 0:00:06]} 3. Bb5 {[%emt 0:00:06]} a6 {[%emt 0:00:05]} 4. Ba4 {[%emt 0:00:04]} Nf6 {[%emt 0:00:07]} 5. d3 {[%emt 0:01:22]} d6 {[%emt 0:00:16]} 6. c3 {[%emt 0:00:19]} g6 {[%emt 0:00:52]} 7. O-O {[%emt 0:00:32]} Bg7 {[%emt 0:00:10]} 8. Nbd2 {[%emt 0:01:37]} O-O {[%emt 0:01:18]} 9. Re1 {[%emt 0:00:21]} Bd7 {[%emt 0:04:11]} 10. Nf1 {[%emt 0:02:38]} Qe8 {[%emt 0:02:32]} 11. Bc2 {[%emt 0:15:24]} Nh5 {[%emt 0:04:10]} 12. d4 {[%emt 0:05:29]} f5 {[%emt 0:11:38]} (12... Bg4 $11) 13. dxe5 $16 {[%emt 0:13:38]} dxe5 {[%emt 0:01:13]} 14. exf5 {[%emt 0:16:23]} gxf5 {[%emt 0:00:09]} 15. Ng3 {[%emt 0:01:00]} Nxg3 {[%emt 0:16:39]} 16. hxg3 {[%emt 0:00:04]} Kh8 {[%emt 0:06:16]} 17. Bb3 {[%emt 0:08:18] White is more active.} (17. Bf4 $16) 17... Be6 $14 {[%emt 0:13:38] [#]} 18. Bf4 $1 {[%emt 0:12:16][%cal Rf4e5]} Rd8 {[%emt 0:06:03]} 19. Qc2 {[%emt 0:00:17]} Bd5 {[%emt 0:01:27]} 20. Bxd5 {[%emt 0:02:15]} Rxd5 {[%emt 0:00:02]} 21. c4 {[%emt 0:05:51]} Rd7 {[%emt 0:04:23]} 22. Nxe5 {[%emt 0:02:26]} Nxe5 $15 {[%emt 0:04:05]} (22... Bxe5 23. Bxe5+ Nxe5 24. Qc3 $16 (24. f4 Qg6 $16)) 23. Rxe5 {[%emt 0:00:10]} Bxe5 {[%emt 0:00:05]} 24. Re1 {[%emt 0:00:03] [#]} Kg8 {[%emt 0:07:54]} 25. Bxe5 {[%emt 0:00:54] [#]} (25. Rxe5 $11 Qg6 26. f3) 25... f4 {[%emt 0:05:07]} 26. gxf4 $11 {[%emt 0:05:18]} Rxf4 {[%emt 0:00:49]} 27. Qc3 {[%emt 0:05:14]} Rf5 {[%emt 0:03:14]} 28. f4 {[%emt 0:00:29][%cal Oe5c7]} Qh5 {[%emt 0:03:21]} 29. c5 {[%emt 0:01:16]} Qh4 {[%emt 0:02:03]} 30. Qb3+ {[%emt 0:01:03]} Kf8 {[%emt 0:00:40][%cal Bg8f8,Bf8g7,Bg7g6,Bg6f5][%mdl 32]} 31. Qe3 {[%emt 0:00:31][%cal Oe5f6]} Rd3 {[%emt 0:01:44]} 32. Qe4 $16 {[%emt 0:00:30] Really sharp!} Rh5 {[%emt 0:01:33][%mdl 8192] [#]} (32... Rf7 $16) 33. Bd6+ $2 {[%emt 0:00:22]} Kg7 $1 $14 {[%emt 0:00:21]} (33... cxd6 $2 34. Qe8+ Kg7 35. Re7+ $18 (35. Qd7+ Kg6 $18) (35. Qd7+ Kg6 $18)) 34. Qe7+ {[%emt 0:00:35]} (34. Bf8+ $1 $14 Kg8 (34... Kxf8 $2 {perishes.} 35. Qe8+ Kg7 36. Re7+ $18) 35. Be7 Qh1+ 36. Kf2 Rd2+ 37. Re2 Rxe2+ 38. Qxe2) 34... Qxe7 $11 {[%emt 0:00:02]} 35. Rxe7+ {[%emt 0:00:03][%mdl 4096] Endgame. KRR-KRB} Kg6 {[%emt 0:00:58]} 36. Rxc7 {[%emt 0:00:09]} Rd1+ {[%emt 0:00:39]} 37. Kf2 {[%emt 0:00:02]} Rd2+ {[%emt 0:00:01]} 38. Kf3 {[%emt 0:00:20]} Rxb2 {[%emt 0:00:35]} 39. Be5 {[%emt 0:00:17]} Rxe5 {[%emt 0:00:53]} 40. fxe5 {[%emt 0:00:03] Threatens to win with Ke4. KR-KR} Kf5 {[%emt 0:00:13]} 41. Rxh7 {[%emt 0:32:30] Re7 would now be deadly.} Kxe5 {[%emt 0:01:49]} 42. Re7+ {[%emt 0:00:00]} Kf6 {[%emt 0:05:35]} 43. Re2 {[%emt 0:00:00]} Rb4 {[%emt 0:06:24]} 44. Rc2 {[%emt 0:00:00]} Ra4 {[%emt 0:01:04]} 45. Rb2 {[%emt 0:00:00]} Ke5 {[%emt 0:04:20]} 46. Kg3 {[%emt 0:00:00]} Rc4 {[%emt 0:06:31]} (46... Kf5 $11) 47. Rxb7 $16 {[%emt 0:00:00] Hoping for Re7+.} Rxc5 {[%emt 0:00:05]} 48. Rf7 {[%emt 0:00:00]} a5 {[%emt 0:02:45]} 49. Rf2 {[%emt 0:00:00] Kh4 is the strong threat.} Ke4 $2 {[%emt 0:02:23][%mdl 8192]} (49... Rc8 $16) 50. Kh4 $18 {[%emt 0:00:00]} Ke3 {[%emt 0:00:36]} 51. Rf3+ $2 {[%emt 0:00:00]} (51. Rb2 $18 {is the precise move to win.}) 51... Ke4 $16 {[%emt 0:00:08]} 52. Rf2 $2 {[%emt 0:04:45][%mdl 8192] Against Rc2} (52. Kh3 $16) 52... Ke3 $1 $18 {[%emt 0:00:02] Black is on the road to losing.} 53. Rb2 {[%emt 0:00:06]} Rc8 {[%emt 0:02:31] [#]} 54. Rb3+ $2 {[%emt 0:00:35]} (54. g4 $1 $18) 54... Kf4 $2 {[%emt 0:02:28][%mdl 8192]} (54... Kf2 $1 $11) 55. g3+ {[%emt 0:00:40][%cal Bg2g3,Bg3g4,Bg4g5,Bg5g6,Bg6g7][%mdl 32]} Ke4 {[%emt 0:00:02]} 56. Rb5 {[%emt 0:00:35]} Ra8 {[%emt 0:00:58]} (56... a4 $18 57. g4 (57. Rb4+ Kf5 $18) 57... Rh8+ 58. Kg3 Rc8) 57. a4 {[%emt 0:00:28] White wants to mate with g4.} Rh8+ {[%emt 0:00:30]} 58. Rh5 {[%emt 0:00:30]} Ra8 {[%emt 0:00:03]} 59. g4 {[%emt 0:00:18] Intending Kg3 and mate.} Kf4 {[%emt 0:00:36]} 60. Rf5+ {[%emt 0:00:03] White mates.} Ke4 {[%emt 0:00:03]} 61. Kg3 {[%emt 0:00:17]} Ra7 {[%emt 0:00:51]} 62. Rb5 {[%emt 0:00:06]} Ra8 {[%emt 0:01:37]} 63. g5 {[%emt 0:00:08]} Kd4 {[%emt 0:00:27]} 64. Kg4 {[%emt 0:00:09]} Kc4 {[%emt 0:00:31]} 65. g6 {[%emt 0:00:06]} Ra6 {[%emt 0:00:28]} 66. Kg5 {[%emt 0:00:06]} Ra7 {[%emt 0:00:08]} 67. Kh6 {[%emt 0:00:05]} Ra8 {[%emt 0:00:03]} 68. g7 {[%emt 0:00:05]} Ra6+ {[%emt 0:00:03]} 69. Kh7 {[%emt 0:00:04]} Ra7 {[%emt 0:00:03]} 70. Kh8 {[%emt 0:00:06] Weighted Error Value: White=0.52/Black=0.43.  Loses game:     	---       	Black=3      Missed win:     	White=2     	---        Mistake:       	White=4     	Black=6      Inaccurate:     	White=1     	Black=1      OK:         	White=12    	Black=17     Best:        	White=6     	Black=3      Strong:       	---       	Black=2} 1-0

[Event "Karel Janecek Open 2024"]
[Site "Prague"]
[Date "2024.03.05"]
[Round "7.3"]
[White "Isik, Alparslan"]
[Black "Li, Di"]
[Result "1/2-1/2"]
[ECO "E05"]
[WhiteElo "2452"]
[BlackElo "2563"]
[Annotator "TA"]
[PlyCount "107"]
[EventDate "2024.02.22"]
[EventType "swiss"]
[EventCountry "CZE"]
[SourceTitle "playchess.com"]
[Source "ChessBase"]
[SourceQuality "1"]
[TimeControl "40/5400+30:1800+30"]

{[%evp 14,107,21,21,45,34,47,4,33,13,25,-5,0,0,0,9,20,0,0,-11,-6,-8,-7,-5,-16,-26,0,-10,-12,-31,-5,-31,0,0,0,0,0,-36,-36,-36,-36,-36,-4,-36,-36,-36,-45,-45,-45,-45,-20,-20,-20,-20,0,0,0,0,0,0,0,-23,-23,-23,-23,-30,-30,-30,-30,-30,-30,-30,-30,-30,0,-31,-31,-31,0,-31,0,-27,-7,-31,-7,-14,-7,-7,0,0,0,0,0,0,0,0]} 1. Nf3 {[%emt 0:02:46]} d5 {[%emt 0:00:37]} 2. g3 {[%emt 0:00:06]} Nf6 {[%emt 0:04:36]} 3. Bg2 {[%emt 0:00:07]} e6 {[%emt 0:00:04]} 4. O-O {[%emt 0:00:07]} Be7 {[%emt 0:00:04]} 5. d4 {[%emt 0:00:13]} O-O {[%emt 0:00:04]} 6. c4 {[%emt 0:00:05]} dxc4 {[%emt 0:00:03]} 7. Qc2 {[%emt 0:00:07]} a6 {[%emt 0:00:13]} 8. a4 {[%emt 0:00:07]} h6 {[%emt 0:00:35]} 9. Rd1 {[%emt 0:04:49][%cal Ob1d2]} Nc6 {[%emt 0:00:08]} 10. Qxc4 {[%emt 0:09:28]} e5 {[%emt 0:00:17][%cal Be6e5,Be5e4][%mdl 32] [#] Threatens to win with ...e4.} 11. Nc3 {[%emt 0:01:24]} e4 {[%emt 0:03:17][%cal Oc6a5] ...Na5! would now be deadly.} 12. Ne5 {[%emt 0:06:38]} Be6 {[%emt 0:05:43]} (12... Na5 $5 13. Qa2 $8 Bf5 $11) 13. Nxc6 {[%emt 0:03:07]} Bxc4 {[%emt 0:00:17]} 14. Nxd8 {[%emt 0:00:07]} Rfxd8 {[%emt 0:06:18]} 15. Be3 {[%emt 0:04:12]} c6 {[%emt 0:05:28]} 16. b3 {[%emt 0:04:17]} Bd5 {[%emt 0:02:15]} ({Don't play} 16... Bxb3 17. Rdb1 c5 18. Nxe4 (18. Rxb3 cxd4 19. Nxe4 dxe3 $11) 18... cxd4 19. Bxd4 (19. Rxb3 dxe3 20. fxe3 Rab8 $11) (19. Nxf6+ Bxf6 20. Rxb3 dxe3 $11) 19... Rxd4 (19... Nxe4 20. Bxe4 Rxd4 21. Bxb7 $16) 20. Nxf6+ (20. Rxb3 $2 Nxe4 21. e3 Nc5 $19) 20... Bxf6 21. Rxb3 $16) 17. Nxd5 {[%emt 0:16:12]} Nxd5 {[%emt 0:03:53]} 18. Bd2 {[%emt 0:00:15]} (18. Bxe4 Nc3 19. f3 Bb4 (19... Nxe2+ 20. Kf1 $17)) 18... f5 {[%emt 0:01:02]} 19. Rab1 {[%emt 0:02:24]} h5 {[%emt 0:09:27]} 20. h4 {[%emt 0:05:39]} Kf7 {[%emt 0:00:44]} 21. e3 {[%emt 0:00:33]} Ke6 {[%emt 0:02:44]} 22. Bf1 {[%emt 0:02:05]} Bd6 {[%emt 0:21:32]} 23. Bc4 {[%emt 0:01:50]} Kd7 {[%emt 0:02:38]} 24. Kf1 {[%emt 0:05:54]} Rh8 {[%emt 0:01:51]} 25. Bxd5 {[%emt 0:02:31]} cxd5 {[%emt 0:00:06]} 26. Ke2 {[%emt 0:00:04]} Rac8 {[%emt 0:20:37]} 27. Rdc1 {[%emt 0:00:16] Against Rc2} Ke6 {[%emt 0:00:06]} 28. Rxc8 {[%emt 0:02:55]} Rxc8 {[%emt 0:00:04]} 29. Rc1 {[%emt 0:00:04] Against Rc2} Rxc1 {[%emt 0:00:35]} 30. Bxc1 $15 {[%emt 0:00:01][%mdl 4096] Endgame. KB-KB} Kf6 {[%emt 0:00:50]} 31. Bd2 {[%emt 0:00:46]} g5 {[%emt 0:00:50]} 32. hxg5+ {[%emt 0:00:11]} Kxg5 {[%emt 0:00:03]} 33. Ba5 {[%emt 0:03:56]} Kg4 {[%emt 0:01:25]} 34. Bd8 {[%emt 0:00:35]} Ba3 {[%emt 0:00:23]} 35. Bf6 {[%emt 0:03:12]} Bb4 {[%emt 0:00:06]} 36. Bd8 {[%emt 0:00:58]} Bd6 {[%emt 0:00:14]} 37. Bf6 {[%emt 0:00:27]} Bf8 {[%emt 0:00:04]} 38. Be5 {[%emt 0:00:58]} Be7 {[%emt 0:00:24]} 39. Bc7 {[%emt 0:01:28]} Bf6 {[%emt 0:00:06]} 40. Bd6 {[%emt 0:01:04]} Bd8 {[%emt 0:00:05]} 41. Be5 {[%emt 0:30:21]} Kh3 {[%emt 0:37:32] Strongly threatening ...Kg2.} 42. Kf1 {[%emt 0:01:57]} Bg5 {[%emt 0:00:20]} 43. Bd6 {[%emt 0:00:36]} Bd8 {[%emt 0:00:00]} 44. Be5 {[%emt 0:00:00]} Be7 {[%emt 0:00:00]} 45. Bc7 {[%emt 0:00:00]} Bb4 {[%emt 0:00:00]} 46. Be5 {[%emt 0:00:00]} Kg4 {[%emt 0:00:00]} 47. Ke2 {[%emt 0:00:00]} Kg5 {[%emt 0:00:00]} 48. Kd1 {[%emt 0:00:00]} Kg6 {[%emt 0:00:00]} 49. Bf4 {[%emt 0:00:00] The position is equal.} Kf6 {[%emt 0:00:00]} 50. Ke2 {[%emt 0:00:00]} Ke6 {[%emt 0:00:00]} 51. Bg5 {[%emt 0:00:00]} Be7 {[%emt 0:00:00]} 52. Bxe7 {[%emt 0:00:00]} Kxe7 {[%emt 0:00:00]} 53. b4 {[%emt 0:00:00]} Kf6 {[%emt 0:00:00]} 54. f4 {[%emt 0:00:00] Weighted Error Value: White=0.08 (flawless) /Black=0.09 (flawless) .  Inaccurate:     	White=7     	Black=7      OK:         	White=16    	Black=20     Best:        	White=2     	---} 1/2-1/2

[Event "Karel Janecek Open 2024"]
[Site "Prague"]
[Date "2024.03.05"]
[Round "7.4"]
[White "Bharath Subramaniyam H"]
[Black "Kalogeris, Ioannis"]
[Result "1-0"]
[ECO "C47"]
[WhiteElo "2515"]
[BlackElo "2427"]
[Annotator "RC"]
[PlyCount "57"]
[EventDate "2024.02.22"]
[EventType "swiss"]
[EventCountry "CZE"]
[SourceTitle "playchess.com"]
[Source "ChessBase"]
[SourceQuality "1"]
[TimeControl "40/5400+30:1800+30"]

1. e4 {[%emt 0:00:05]} e5 {[%emt 0:03:59]} 2. Nf3 {[%emt 0:00:22]} Nc6 {[%emt 0:00:06]} 3. Nc3 {[%emt 0:00:08]} Nf6 {[%emt 0:00:09]} 4. d4 {[%emt 0:00:23]} exd4 {[%emt 0:00:45]} 5. Nxd4 {[%emt 0:00:10]} Bb4 {[%emt 0:01:00]} 6. Nxc6 {[%emt 0:00:17]} bxc6 {[%emt 0:00:31]} 7. Bd3 {[%emt 0:00:10]} d5 {[%emt 0:02:17]} 8. exd5 {[%emt 0:00:14]} cxd5 {[%emt 0:01:09]} 9. O-O {[%emt 0:00:11]} O-O {[%emt 0:00:15]} 10. h3 {[%emt 0:00:13]} Be7 {[%emt 0:01:41]} 11. Re1 {[%emt 0:05:03]} Bb7 {[%emt 0:09:08]} 12. Bg5 {[%emt 0:13:00]} h6 {[%emt 0:15:19]} 13. Bh4 {[%emt 0:04:38]} d4 {[%emt 0:07:54]} 14. Nb5 {[%emt 0:18:59]} c5 {[%emt 0:02:13]} 15. Qe2 {[%emt 0:04:08]} Qd5 {[%emt 0:16:45]} 16. f3 {[%emt 0:04:37]} Bd8 {[%emt 0:00:53]} 17. Bxf6 {[%emt 0:03:43]} gxf6 {[%emt 0:01:17]} 18. c4 {[%emt 0:17:46]} Qg5 {[%emt 0:15:31]} 19. Nd6 {[%emt 0:00:57]} Bc7 {[%emt 0:04:19]} 20. Nxb7 {[%emt 0:06:48]} f5 {[%emt 0:05:56]} 21. f4 {[%emt 0:08:38]} Bxf4 {[%emt 0:00:54]} 22. Qf3 {[%emt 0:00:41]} Rab8 {[%emt 0:02:01]} 23. Re2 {[%emt 0:02:16]} Be3+ {[%emt 0:01:16]} 24. Kh1 {[%emt 0:00:32]} f4 {[%emt 0:00:02]} 25. Nd6 {[%emt 0:02:13]} Rb6 {[%emt 0:01:07]} 26. Nf5 {[%emt 0:02:50]} Kh8 {[%emt 0:01:40]} 27. Rf1 {[%emt 0:01:00]} Re6 {[%emt 0:00:55]} 28. g3 {[%emt 0:02:07]} fxg3 {[%emt 0:01:16]} 29. Rg2 {[%emt 0:00:26]} 1-0

[Event "Karel Janecek Open 2024"]
[Site "Prague"]
[Date "2024.03.05"]
[Round "7.5"]
[White "Neuman, Petr"]
[Black "Polak, Tomas"]
[Result "1/2-1/2"]
[ECO "C02"]
[WhiteElo "2398"]
[BlackElo "2525"]
[Annotator "TA"]
[PlyCount "81"]
[EventDate "2024.02.22"]
[EventType "swiss"]
[EventCountry "CZE"]
[SourceTitle "playchess.com"]
[Source "ChessBase"]
[SourceQuality "1"]
[TimeControl "40/5400+30:1800+30"]

{[%evp 12,81,39,36,37,36,54,39,41,39,44,46,56,63,49,6,-12,-68,-58,-104,-90,-96,-71,-95,-28,-81,-99,-69,-70,-92,-77,-87,-83,-91,-53,-41,-28,-47,-45,-28,-29,-45,-38,-22,-12,-29,-27,-26,-26,-47,-18,-17,-14,-13,-32,-12,-20,-18,0,0,13,11,12,11,11,12,23,20,22,22,23,28]} 1. e4 {[%emt 0:01:41]} c5 {[%emt 0:00:13]} 2. Nf3 {[%emt 0:00:29]} e6 {[%emt 0:00:16]} 3. c3 {[%emt 0:00:13]} d5 {[%emt 0:08:24]} 4. e5 {[%emt 0:00:05]} Nc6 {[%emt 0:00:30]} 5. d4 {[%emt 0:00:10]} Qb6 {[%emt 0:01:19]} 6. a3 {[%emt 0:00:59]} a5 {[%emt 0:02:38]} 7. Bd3 {[%emt 0:01:41]} Nh6 {[%emt 0:02:43]} 8. O-O {[%emt 0:03:24]} Nf5 {[%emt 0:02:51][%cal Rc5d4]} 9. g4 {[%emt 0:13:34]} Nh6 {[%emt 0:08:15] White is slightly better.} 10. h3 {[%emt 0:00:22]} Bd7 {[%emt 0:00:28][%cal Rc5d4]} 11. Nbd2 {[%emt 0:09:57]} cxd4 {[%emt 0:15:57]} 12. c4 $1 {[%emt 0:00:44]} Ng8 {[%emt 0:11:41]} 13. Re1 {[%emt 0:05:24] With the idea cxd5.} Nge7 {[%emt 0:01:32]} 14. Nf1 {[%emt 0:05:11]} (14. cxd5 $11 Nxd5 15. Nc4) 14... h5 {[%emt 0:07:21]} 15. Ng3 {[%emt 0:00:50]} (15. cxd5 $15 Nxd5 16. gxh5) 15... hxg4 {[%emt 0:00:06]} 16. hxg4 {[%emt 0:00:02]} dxc4 {[%emt 0:03:30]} 17. Bxc4 {[%emt 0:00:06] [#]} Ng6 {[%emt 0:03:16]} ({Better is} 17... a4 $1 $17 18. Bg5 Na5) 18. Bg5 {[%emt 0:05:07] [#]} (18. Bd3 $11 {remains equal.}) 18... Be7 $1 $17 {[%emt 0:06:00]} 19. Bxe7 {[%emt 0:01:40]} Ncxe7 {[%emt 0:03:38]} 20. Nh5 {[%emt 0:00:47]} O-O-O {[%emt 0:02:26] White must now prevent ...Bc6.} ({Don't take} 20... Qxb2 21. Nxg7+ (21. Nxd4 $2 O-O $19) 21... Kf8 22. Nh5 $15) 21. Qxd4 {[%emt 0:08:29]} Qxd4 {[%emt 0:00:27]} 22. Nxd4 {[%emt 0:00:02][%cal Of2f4]} Nh4 {[%emt 0:02:40] Strongly threatening ...Ba4.} 23. Be2 {[%emt 0:01:07]} (23. Nxg7 $2 {too greedy.} Rdg8 24. f3 Rxg7 $19) 23... Nc6 {[%emt 0:02:34]} (23... Bc6 {is interesting.} 24. Rad1 g5 25. b4 axb4 26. axb4 Kb8) 24. Nf3 {[%emt 0:00:28]} Nxf3+ {[%emt 0:01:31]} 25. Bxf3 {[%emt 0:00:04]} Nd4 {[%emt 0:00:05]} 26. Be4 {[%emt 0:00:53][%cal Oa1d1]} Bc6 {[%emt 0:00:30]} 27. Rac1 {[%emt 0:00:39]} Kb8 {[%emt 0:01:19]} 28. Kg2 {[%emt 0:01:14] Prevents Nf3} Bxe4+ {[%emt 0:02:54]} 29. Rxe4 {[%emt 0:00:04]} Nc6 {[%emt 0:00:15]} 30. b4 {[%emt 0:06:27]} axb4 {[%emt 0:00:24]} 31. axb4 {[%emt 0:00:02]} Rd5 {[%emt 0:02:08]} 32. Nxg7 {[%emt 0:01:25]} Rxe5 {[%emt 0:05:06]} 33. Rxe5 {[%emt 0:01:01]} Nxe5 $11 {[%emt 0:00:01][%mdl 4096] Endgame. KRN-KRN} 34. f3 {[%emt 0:00:15]} Rg8 {[%emt 0:03:02]} 35. Nh5 {[%emt 0:00:05]} Nxg4 {[%emt 0:01:07]} 36. fxg4 {[%emt 0:00:17]} Rxg4+ {[%emt 0:00:01] KRN-KR} 37. Kf3 {[%emt 0:00:22]} Rxb4 {[%emt 0:00:04]} 38. Nf6 {[%emt 0:00:36]} Rd4 {[%emt 0:00:45] Repels Nd7+} 39. Ke3 {[%emt 0:00:32]} Rd8 {[%emt 0:00:27]} 40. Ke4 {[%emt 0:02:14]} Rd2 {[%emt 0:00:14]} 41. Ke5 {[%emt 0:32:34] Weighted Error Value: White=0.12 (very precise) /Black=0.09 (flawless) .  Mistake:       	White=3     	Black=1      Inaccurate:     	White=1     	Black=2      OK:         	White=17    	Black=9      Best:        	---       	Black=1      Strong:       	White=1     	Black=1} 1/2-1/2